bitfinex/quotes_SOLUSD_20250123
["timestamp","ask_amount","ask_price","bid_price","bid_amount"]
[1737635860254,11.7780286,244.81,244.75,0.063]
[1737635861044,7.6932286,244.76,244.75,0.063]
[1737635861737,35.5557126,244.76,244.75,0.063]
[1737635862056,35.5557126,244.76,244.75,0.0001]
[1737635863156,38.23416924,244.76,244.75,0.0001]
[1737635863654,37.23416924,244.76,244.75,0.0001]
[1737635864963,35.5557126,244.76,244.75,0.0001]
[1737635872168,36.5557126,244.76,244.75,0.0001]
[1737635872751,35.5557126,244.76,244.75,0.0001]
[1737635873062,35.5857126,244.76,244.75,0.0001]
[1737635882667,21.0,244.72,244.67,0.063]
[1737635882857,31.4701126,244.68,244.67,0.0001]
[1737635883179,23.776884,244.67,244.66,0.0001]
[1737635883892,11.7801286,244.68,244.66,0.0001]
[1737635884774,23.776884,244.67,244.66,0.0001]
[1737635885679,23.776884,244.67,244.57,4.0887]
[1737635885869,7.6932286,244.65,244.56,7.6932286]
[1737635886070,23.776884,244.64,244.54,145.7932286]
[1737635886793,23.776884,244.64,244.54,149.8824286]
[1737635887296,4.0878,244.63,244.54,149.8824286]
[1737635888095,4.0878,244.63,244.54,145.7932286]
[1737635888482,4.0878,244.63,244.54,149.8824286]
[1737635888794,4.0878,244.63,244.54,156.4220286]
[1737635889879,23.776884,244.64,244.54,152.3328286]
[1737635890082,23.776884,244.62,244.54,152.3328286]
[1737635891091,7.6932286,244.63,244.53,1.506]
[1737635891393,23.776884,244.6,244.53,1.506]
[1737635892091,23.776884,244.6,244.5,11.8461286]
[1737635892092,23.776884,244.58,244.5,0.063]
[1737635892295,23.776884,244.54,244.5,0.063]
[1737635893283,11.7826286,244.53,244.5,0.063]
[1737635893483,7.6932286,244.53,244.5,0.063]
[1737635893675,10.50881065,244.53,244.5,0.063]
[1737635893879,10.50881065,244.53,244.45,137.75839804]
[1737635893880,2.81558205,244.53,244.45,137.75839804]
[1737635894480,15.5797678,244.52,244.46,7.6932286]
[1737635895491,15.5797678,244.52,244.48,7.6932286]
[1737635895702,12.76418575,244.49,244.48,7.6932286]
[1737635895904,12.76418575,244.49,244.46,11.7838286]
[1737635896589,12.76418575,244.49,244.46,11.8468286]
[1737635896894,12.76418575,244.49,244.46,19.4092286]
[1737635897500,12.76418575,244.49,244.46,157.16762664]
[1737635897889,12.76418575,244.49,244.48,11.7835286]
[1737635898790,8.44863577,244.49,244.48,11.7835286]
[1737635898985,8.44863577,244.49,244.48,4.0903]
[1737635899191,8.44863577,244.49,244.47,7.6932286]
[1737635899390,15.5598658,244.51,244.47,7.6932286]
[1737635900193,15.5598658,244.51,244.47,11.7836286]
[1737635900396,6.37329553,244.51,244.47,11.7836286]
[1737635900784,10.46309553,244.51,244.43,140.54108777]
[1737635902135,10.46309553,244.51,244.43,132.84785917]
[1737635902405,6.37329553,244.48,244.43,132.84785917]
[1737635902887,6.37329553,244.48,244.43,128.75685917]
[1737635903199,10.46359553,244.48,244.41,136.51308777]
[1737635903503,10.46359553,244.48,244.41,0.063]
[1737635903504,23.776884,244.47,244.41,0.063]
[1737635903694,6.37329553,244.44,244.41,0.063]
[1737635904003,23.776884,244.43,244.41,0.063]
[1737635904504,40.86440685,244.43,244.41,0.063]
[1737635904681,23.776884,244.38,244.37,0.063]
[1737635904879,4.0928,244.33,244.27,0.063]
[1737635905108,7.6932286,244.32,244.27,0.063]
[1737635906186,20.0,244.29,244.27,0.063]
[1737635906391,7.6932286,244.28,244.27,0.063]
[1737635906598,31.4701126,244.28,244.27,0.063]
[1737635907005,35.5637126,244.28,244.27,0.063]
[1737635908886,51.12143545,244.28,244.27,0.063]
[1737635909294,23.776884,244.23,244.21,0.063]
[1737635909494,31.4701126,244.22,244.21,0.063]
[1737635909812,35.85667254,244.22,244.21,0.063]
[1737635910582,38.66605848,244.22,244.21,0.063]
[1737635911213,14.88917448,244.22,244.14,12.07978854]
[1737635912109,12.07978854,244.22,244.14,12.07978854]
[1737635913107,12.07978854,244.22,244.14,4.0959]
[1737635914595,35.85667254,244.22,244.14,4.0959]
[1737635914905,12.07978854,244.2,244.12,12.14278854]
[1737635915101,23.776884,244.19,244.12,0.063]
[1737635915417,12.07978854,244.2,244.13,4.0961]
[1737635916197,12.07978854,244.2,244.13,3.99278606]
[1737635917308,12.07978854,244.24,244.16,12.07978854]
[1737635917929,12.07978854,244.24,244.14,12.07978854]
[1737635919313,12.07978854,244.24,244.15,4.0958]
[1737635919715,32.07978854,244.28,244.18,12.07978854]
[1737635919915,12.07978854,244.35,244.24,12.07978854]
[1737635920101,12.07978854,244.35,244.26,12.07978854]
[1737635920413,12.07978854,244.35,244.24,12.07978854]
[1737635920613,12.07978854,244.33,244.24,12.07978854]
[1737635921014,12.07978854,244.33,244.25,4.0941]
[1737635921215,16.17268854,244.33,244.23,4.0943]
[1737635923708,39.94927254,244.35,244.24,5.5852662]
[1737635923913,27.869484,244.35,244.25,12.07978854]
[1737635924117,39.94927254,244.35,244.25,12.07978854]
[1737635924319,39.94927254,244.35,244.25,150.17978854]
[1737635924705,20.0,244.29,244.23,138.1]
[1737635925221,20.0,244.28,244.23,138.1]
[1737635925397,32.07978854,244.24,244.15,12.07978854]
[1737635925812,32.07978854,244.24,244.13,151.64948854]
[1737635926015,32.07978854,244.24,244.13,150.20978854]
[1737635926320,1.5332,244.23,244.13,154.30588854]
[1737635926707,27.871484,244.22,244.13,12.10978854]
[1737635927321,1.5332,244.23,244.13,16.20588854]
[1737635927804,12.07978854,244.22,244.13,12.10978854]
[1737635928821,4.0948,244.21,244.13,12.10978854]
[1737635929918,4.0948,244.21,244.13,16.20588854]
[1737635930112,4.0948,244.21,244.13,154.30588854]
[1737635931934,1.5332,244.23,244.15,12.07978854]
[1737635933009,1.5332,244.23,244.15,12.10978854]
[1737635933829,1.5332,244.23,244.15,16.20548854]
[1737635934735,23.776884,244.22,244.15,0.03]
[1737635934937,39.95127254,244.22,244.15,0.03]
[1737635935729,27.871484,244.22,244.15,0.03]
[1737635936938,12.07978854,244.2,244.15,0.03]
[1737635937150,23.776884,244.19,244.15,0.03]
[1737635937443,55.85667254,244.16,244.15,0.03]
[1737635938036,4.0956,244.16,244.15,0.03]
[1737635938238,16.17518854,244.18,244.15,0.03]
[1737635938747,4.0954,244.18,244.15,0.03]
[1737635939118,16.17518854,244.18,244.15,0.03]
[1737635939326,23.776884,244.17,244.15,0.03]
[1737635939843,12.07978854,244.16,244.15,0.03]
[1737635940026,39.95227254,244.16,244.15,0.03]
[1737635941421,39.95227254,244.16,244.15,0.0001]
[1737635941717,47.90317254,244.16,244.15,0.0001]
[1737635942632,20.0,244.13,244.12,0.0001]
[1737635942835,20.0,244.09,244.02,0.063]
[1737635943025,35.85667254,244.03,244.02,0.063]
[1737635943858,20.0,243.99,243.92,0.063]
[1737635944044,39.95617254,243.93,243.92,0.063]
[1737635945050,12.07978854,243.95,243.92,0.063]
[1737635945745,12.07978854,243.93,243.92,0.063]
[1737635946857,35.85667254,243.93,243.92,0.063]
[1737635947068,37.35767254,243.93,243.92,0.063]
[1737635947830,13.58078854,243.93,243.92,0.063]
[1737635948029,37.35767254,243.93,243.92,0.063]
[1737635948258,39.05421239,243.93,243.92,0.063]
[1737635949350,15.27732839,243.93,243.92,0.063]
[1737635949563,13.58078854,243.93,243.92,0.063]
[1737635949740,12.07978854,243.93,243.92,0.063]
[1737635950636,12.07978854,243.95,243.92,0.063]
[1737635950829,12.07978854,243.99,243.92,4.1625]
[1737635951347,12.07978854,243.97,243.92,4.1625]
[1737635951755,12.07978854,243.99,243.92,4.1625]
[1737635952141,12.07978854,243.97,243.92,4.1625]
[1737635952447,12.07978854,243.95,243.92,0.063]
[1737635952653,12.07978854,243.93,243.92,0.063]
[1737635953433,35.85667254,243.93,243.92,0.063]
[1737635954363,37.37277254,243.93,243.92,0.063]
[1737635955272,13.59588854,243.93,243.92,0.063]
[1737635955569,37.37277254,243.93,243.92,0.063]
[1737635956148,20.0,243.89,243.8,0.063]
[1737635956464,12.07978854,243.88,243.8,0.063]
[1737635956835,20.0,243.89,243.8,4.1646]
[1737635957035,20.0,243.89,243.81,12.07978854]
[1737635957637,39.95637254,243.92,243.82,4.1013]
[1737635958472,12.07978854,243.92,243.82,4.1013]
[1737635959557,12.07978854,243.92,243.83,12.07978854]
[1737635959764,16.17928854,243.94,243.84,4.101]
[1737635959974,16.17928854,243.94,243.85,12.07978854]
[1737635960677,16.17928854,243.94,243.86,4.1007]
[1737635960846,12.07978854,243.98,243.89,12.07978854]
[1737635961176,6.6149,244.02,243.93,150.17978854]
[1737635961177,12.07978854,244.02,243.93,150.17978854]
[1737635961952,6.5892,244.09,243.99,150.17978854]
[1737635961953,12.07978854,244.09,243.99,150.17978854]
[1737635962659,12.07978854,244.11,244.02,4.098]
[1737635962858,12.07978854,244.11,244.02,142.198]
[1737635963954,12.07978854,244.13,244.03,12.07978854]
[1737635964560,12.07978854,244.13,244.04,4.0976]
[1737635964876,12.07978854,244.15,244.05,12.07978854]
[1737635965463,16.17558854,244.15,244.05,12.07978854]
[1737635965673,12.07978854,244.15,244.05,150.17978854]
[1737635965982,0.063,244.16,244.09,150.17978854]
[1737635966657,0.063,244.16,244.11,12.07978854]
[1737635966857,0.063,244.16,244.11,150.17978854]
[1737635967475,0.063,244.16,244.13,150.17978854]
[1737635968186,0.063,244.16,244.13,138.1]
[1737635969981,0.063,244.16,244.14,157.42734515]
[1737635970785,0.063,244.16,244.14,161.52324515]
[1737635973090,0.063,244.16,244.14,243.72324515]
[1737635974088,0.063,244.16,244.14,239.62734515]
[1737635974288,0.063,244.16,244.14,101.52734515]
[1737635974579,0.063,244.16,244.14,82.2]
[1737635974882,0.063,244.16,244.14,101.52734515]
[1737635977760,0.063,244.16,244.14,19.32734515]
[1737635981785,4.1586,244.16,244.14,19.32734515]
[1737635981983,4.1586,244.16,244.12,19.32734515]
[1737635982161,23.48594515,244.16,244.08,101.52734515]
[1737635982363,19.32734515,244.14,244.04,19.32734515]
[1737635983480,4.0961,244.13,244.04,19.32734515]
[1737635983689,19.32734515,244.12,244.04,19.32734515]
[1737635984192,4.0961,244.13,244.04,19.32734515]
[1737635984392,4.0961,244.13,244.06,19.32734515]
[1737635984966,4.0961,244.13,244.04,4.0976]
[1737635984967,19.39034515,244.16,244.08,157.42734515]
[1737635985183,0.063,244.16,244.08,157.42734515]
[1737635986171,4.1587,244.16,244.08,161.52424515]
[1737635986782,0.063,244.16,244.08,161.52424515]
[1737635986996,0.063,244.16,244.1,157.42734515]
[1737635988587,4.1586,244.16,244.1,157.42734515]
[1737635988778,4.1586,244.16,244.1,138.1]
[1737635990888,23.48594515,244.16,244.06,157.42734515]
[1737635991192,33.72504515,244.16,244.06,157.42734515]
[1737635991676,26.48382625,244.16,244.06,150.18612625]
[1737635992472,20.0,244.13,244.06,12.08612625]
[1737635993387,20.0,244.13,244.03,224.3978]
[1737635993388,4.0963,244.12,244.04,12.08612625]
[1737635994382,4.0958,244.15,244.06,12.08612625]
[1737635994583,4.0958,244.15,244.08,12.08612625]
[1737635995393,24.0958,244.15,244.08,12.08612625]
[1737635995695,4.0958,244.15,244.08,12.08612625]
[1737635997493,4.0958,244.15,244.06,12.08612625]
[1737635997697,23.776884,244.14,244.06,12.08612625]
[1737635998375,1.601,244.13,244.06,12.08612625]
[1737635998575,1.601,244.13,244.04,12.08612625]
[1737635998794,1.601,244.13,244.06,12.08612625]
[1737635999594,4.0963,244.12,244.06,12.08612625]
[1737636000401,6.2077,244.12,244.04,150.18612625]
[1737636000706,5.6972,244.13,244.06,12.08612625]
[1737636000888,5.6972,244.13,244.04,232.38612625]
[1737636001400,5.6972,244.13,244.06,12.08612625]
[1737636001605,0.063,244.16,244.1,12.08612625]
[1737636001974,0.063,244.16,244.1,150.18612625]
[1737636002481,4.1586,244.16,244.1,150.18612625]
[1737636003082,4.1586,244.16,244.1,138.1]
[1737636003519,20.0,244.07,243.96,138.1]
[1737636003797,20.0,244.07,243.92,0.03]
[1737636003798,13.68412625,244.03,243.93,138.1]
[1737636003997,12.08612625,244.01,243.92,0.03]
[1737636004201,1.598,244.03,243.92,0.03]
[1737636004202,12.08612625,243.99,243.92,0.03]
[1737636004416,12.08612625,243.97,243.92,0.03]
[1737636005309,12.08612625,243.99,243.92,0.03]
[1737636005606,16.18462625,243.99,243.92,0.03]
[1737636005907,43.46238493,243.99,243.92,0.03]
[1737636006212,23.776884,243.98,243.92,0.03]
[1737636006388,19.36388493,243.97,243.92,0.03]
[1737636006704,39.36388493,243.99,243.92,0.03]
[1737636008502,19.36388493,243.97,243.92,0.03]
[1737636009404,19.36388493,243.95,243.92,0.03]
[1737636009607,20.0,243.93,243.92,0.03]
[1737636009796,39.36388493,243.93,243.92,0.03]
[1737636010111,69.71576893,243.93,243.92,0.03]
[1737636010318,73.81526893,243.93,243.92,0.03]
[1737636010788,75.46606893,243.93,243.92,0.03]
[1737636012923,20.0,243.89,243.8,0.063]
[1737636013216,19.36388493,243.85,243.8,0.063]
[1737636015187,23.776884,243.82,243.8,0.063]
[1737636015388,51.06276893,243.81,243.8,0.063]
[1737636020613,19.36388493,243.83,243.8,0.063]
[1737636022014,19.36388493,243.81,243.8,0.063]
[1737636022594,23.46538493,243.81,243.8,0.063]
[1737636024020,63.14076893,243.78,243.77,0.03]
[1737636024510,20.0,243.74,243.67,0.03]
[1737636024812,43.14076893,243.73,243.67,0.03]
[1737636025693,23.776884,243.73,243.67,0.03]
[1737636026014,32.12716382,243.74,243.67,0.03]
[1737636026911,36.22986382,243.74,243.67,0.03]
[1737636032807,27.879784,243.73,243.67,0.03]
[1737636033008,12.12716382,243.72,243.67,0.03]
[1737636034029,16.23026382,243.72,243.67,0.03]
[1737636034921,55.90404782,243.68,243.67,0.03]
[1737636036309,60.00774782,243.68,243.67,0.03]
[1737636036516,61.51494782,243.68,243.67,0.03]
[1737636043934,20.0,243.64,243.55,0.03]
[1737636044138,35.90404782,243.63,243.55,0.03]
[1737636044607,12.12716382,243.61,243.55,0.03]
[1737636044809,23.776884,243.6,243.55,0.03]
[1737636045034,23.776884,243.58,243.55,0.03]
[1737636045716,23.776884,243.56,243.55,0.03]
[1737636046319,27.882584,243.56,243.55,0.03]
[1737636047621,32.12716382,243.59,243.55,0.03]
[1737636047819,23.776884,243.58,243.55,0.03]
[1737636050542,23.776884,243.56,243.55,0.03]
[1737636051815,27.882584,243.56,243.55,0.03]
[1737636052746,23.776884,243.52,243.37,18.26246382]
[1737636052944,12.12716382,243.48,243.39,12.12716382]
[1737636053751,12.12716382,243.48,243.4,4.1084]
[1737636054240,35.90404782,243.52,243.41,12.12716382]
[1737636054426,12.12716382,243.54,243.43,12.12716382]
[1737636054629,12.12716382,243.54,243.45,12.12716382]
[1737636055850,12.12716382,243.58,243.47,12.12716382]
[1737636056244,14.3991,243.61,243.47,12.12716382]
[1737636056245,12.12716382,243.56,243.47,12.12716382]
[1737636057120,12.12716382,243.56,243.46,14.376]
[1737636057534,12.12716382,243.56,243.46,4.1074]
[1737636057742,23.776884,243.53,243.43,12.12716382]
[1737636057934,43.776884,243.5,243.39,12.12716382]
[1737636058140,23.776884,243.47,243.37,12.12716382]
[1737636058523,12.12716382,243.5,243.39,12.12716382]
[1737636059768,20.0,243.47,243.4,4.1084]
[1737636060252,32.12716382,243.5,243.4,4.1084]
[1737636061147,5.764,243.52,243.41,12.12716382]
[1737636061148,13.78476382,243.52,243.41,12.12716382]
[1737636061651,13.78476382,243.52,243.42,4.1081]
[1737636061652,12.12716382,243.5,243.42,4.1081]
[1737636062749,12.12716382,243.48,243.4,4.1083]
[1737636063133,12.12716382,243.48,243.37,150.22716382]
[1737636063346,5.7641,243.52,243.36,4.1091]
[1737636063347,12.12716382,243.46,243.36,4.1091]
[1737636064053,12.12716382,243.46,243.37,12.12716382]
[1737636064937,12.12716382,243.48,243.38,4.1088]
[1737636065455,12.12716382,243.48,243.39,12.12716382]
[1737636065758,12.12716382,243.48,243.38,4.1088]
[1737636066056,12.12716382,243.48,243.39,12.12716382]
[1737636066740,12.12716382,243.48,243.37,16.23606382]
[1737636067265,16.23426382,243.48,243.37,16.23606382]
[1737636068358,12.12716382,243.48,243.37,16.23606382]
[1737636071169,16.23426382,243.48,243.37,16.23606382]
[1737636074471,13.66616382,243.58,243.46,12.12716382]
[1737636074787,12.12716382,243.62,243.51,12.12716382]
[1737636075067,12.12716382,243.62,243.53,12.12716382]
[1737636076044,12.12716382,243.64,243.55,174.00404782]
[1737636076255,0.063,243.67,243.63,12.12716382]
[1737636076453,0.063,243.67,243.66,12.12716382]
[1737636076855,0.063,243.67,243.64,12.12716382]
[1737636077057,0.063,243.67,243.58,6.3437]
[1737636077058,0.063,243.67,243.6,12.12716382]
[1737636077279,0.063,243.67,243.58,12.12716382]
[1737636077642,0.063,243.67,243.63,12.12716382]
[1737636077843,20.063,243.67,243.61,12.12716382]
[1737636078049,0.063,243.62,243.59,12.12716382]
[1737636078244,0.063,243.62,243.57,12.12716382]
[1737636079071,0.063,243.62,243.55,12.12716382]
[1737636080072,0.063,243.62,243.57,12.12716382]
[1737636082286,0.063,243.62,243.5,139.1]
[1737636082287,4.1677,243.62,243.55,12.12716382]
[1737636082572,16.29486382,243.62,243.51,12.12716382]
[1737636082872,12.12716382,243.6,243.49,12.12716382]
[1737636083284,12.12716382,243.58,243.49,12.12716382]
[1737636084973,16.23266382,243.58,243.49,12.12716382]
[1737636085576,20.0,243.55,243.49,12.12716382]
[1737636085763,20.0,243.55,243.45,12.12716382]
[1737636085951,20.0,243.55,243.43,4.1079]
[1737636085952,12.12716382,243.54,243.43,12.12716382]
[1737636086865,4.1062,243.53,243.43,16.23506382]
[1737636087579,12.12716382,243.54,243.45,12.12716382]
[1737636087779,4.1059,243.55,243.47,12.12716382]
[1737636088077,12.12716382,243.58,243.49,12.12716382]
[1737636088888,12.12716382,243.6,243.49,16.23396382]
[1737636089080,12.12716382,243.6,243.51,12.12716382]
[1737636089261,12.19016382,243.62,243.53,12.12716382]
[1737636090152,16.29486382,243.62,243.53,12.12716382]
[1737636090475,16.29486382,243.62,243.51,12.12716382]
[1737636091555,23.776884,243.61,243.51,12.12716382]
[1737636092482,12.12716382,243.6,243.51,12.12716382]
[1737636092979,12.12716382,243.6,243.49,16.23406382]
[1737636093800,4.1052,243.59,243.49,12.12716382]
[1737636094085,4.1052,243.59,243.42,1.0]
[1737636094086,32.12716382,243.56,243.45,12.12716382]
[1737636094249,14.3683,243.59,243.43,12.12716382]
[1737636094250,35.90404782,243.54,243.43,12.12716382]
[1737636094454,12.12716382,243.52,243.43,12.12716382]
[1737636094684,12.12716382,243.52,243.41,16.23526382]
[1737636095285,12.12716382,243.45,243.36,0.03]
[1737636095456,25.338284,243.51,243.36,0.03]
[1737636095457,12.12716382,243.43,243.36,0.03]
[1737636095659,1.5614,243.51,243.36,0.03]
[1737636095660,12.12716382,243.41,243.36,0.03]
[1737636095963,20.0,243.38,243.36,0.03]
[1737636096159,55.90404782,243.37,243.36,0.03]
[1737636096376,39.90656382,243.37,243.3,0.03]
[1737636096577,35.90404782,243.31,243.3,0.03]
[1737636097857,35.90404782,243.31,243.17,37.85996566]
[1737636097858,20.0,243.27,243.17,37.85996566]
[1737636098092,20.0,243.22,243.17,37.85996566]
[1737636098461,35.90404782,243.21,243.17,37.85996566]
[1737636098660,12.12716382,243.21,243.17,37.85996566]
[1737636098987,12.12716382,243.25,243.17,37.85996566]
[1737636099300,12.12716382,243.27,243.17,49.98712948]
[1737636099461,12.12716382,243.27,243.17,12.12716382]
[1737636099661,4.1099,243.31,243.17,19.47814529]
[1737636099662,19.47814529,243.25,243.17,19.47814529]
[1737636099960,19.47814529,243.23,243.16,12.0]
[1737636100462,19.47814529,243.18,243.16,12.0]
[1737636101269,19.47814529,243.18,243.16,10.3334]
[1737636102185,23.776884,243.17,243.16,10.3334]
[1737636102863,23.776884,243.17,243.16,8.6668]
[1737636108985,23.59034529,243.18,243.16,8.6668]
[1737636109162,26.02974529,243.2,243.16,8.6668]
[1737636109567,19.47814529,243.18,243.16,8.6668]
[1737636110187,23.59034529,243.18,243.16,8.6668]
[1737636110688,23.776884,243.17,243.16,8.6668]
[1737636112790,23.59034529,243.18,243.16,8.6668]
[1737636113000,19.47814529,243.18,243.16,8.6668]
[1737636113293,19.47814529,243.2,243.16,8.6668]
[1737636113466,19.47814529,243.18,243.16,8.6668]
[1737636113666,19.47814529,243.18,243.16,8.6968]
[1737636115092,19.47814529,243.2,243.16,8.6968]
[1737636117092,4.112,243.19,243.16,8.6968]
[1737636118911,19.47814529,243.23,243.16,8.6968]
[1737636119201,19.47814529,243.23,243.16,12.8092]
[1737636119700,12.17624534,243.24,243.16,12.8092]
[1737636120995,12.17624534,243.26,243.16,24.98544534]
[1737636122786,12.17624534,243.24,243.16,8.6968]
[1737636122982,12.17624534,243.22,243.16,8.6968]
[1737636123306,12.17624534,243.2,243.16,8.6968]
[1737636125586,16.28804534,243.2,243.16,8.6968]
[1737636127402,12.17624534,243.18,243.16,8.6968]
[1737636131407,16.28844534,243.18,243.16,8.6968]
[1737636131604,23.776884,243.17,243.16,8.6968]
[1737636132908,23.776884,243.17,243.16,0.0001]
[1737636133108,23.776884,243.13,243.05,0.03]
[1737636133409,12.17624534,243.06,243.05,0.03]
[1737636134691,35.95312934,243.06,243.05,0.03]
[1737636134891,12.17624534,243.06,243.05,0.03]
[1737636135111,35.95312934,243.06,243.05,0.03]
[1737636135286,35.95312934,243.06,243.05,0.0001]
[1737636136312,12.17624534,243.06,243.05,0.0001]
[1737636136483,12.17624534,243.08,243.05,0.0001]
[1737636136913,12.17624534,243.06,243.05,0.0001]
[1737636137210,20.0,243.03,242.9,16.29304534]
[1737636137393,12.17624534,243.02,242.92,12.17624534]
[1737636138210,12.17624534,243.0,242.9,16.29304534]
[1737636139411,12.17624534,242.98,242.88,17.82804534]
[1737636139913,12.17624534,242.96,242.9,0.03]
[1737636141209,12.17624534,242.92,242.9,0.03]
[1737636141724,12.17624534,242.94,242.9,0.03]
[1737636141913,12.17624534,242.92,242.9,0.03]
[1737636142096,12.17624534,242.92,242.77,12.17624534]
[1737636142097,20.0,242.88,242.77,12.17624534]
[1737636142291,12.17624534,242.87,242.77,12.17624534]
[1737636142509,12.17624534,242.85,242.75,12.17624534]
[1737636143396,12.17624534,242.85,242.75,16.29564534]
[1737636145427,12.17624534,242.9,242.8,12.17624534]
[1737636145599,12.17624534,242.92,242.82,12.17624534]
[1737636147020,12.17624534,242.92,242.81,1.0]
[1737636147021,12.17624534,242.92,242.84,12.17624534]
[1737636147398,12.17624534,242.94,242.84,12.17624534]
[1737636148822,12.17624534,242.94,242.86,12.17624534]
[1737636149841,12.17624534,242.94,242.87,4.1174]
[1737636149997,11.8334,243.03,242.9,12.17624534]
[1737636149998,12.17624534,243.0,242.9,12.17624534]
[1737636151099,12.17624534,243.0,242.91,4.1167]
[1737636151301,12.17624534,243.04,242.94,12.17624534]
[1737636153307,12.17624534,243.04,242.95,4.116]
[1737636153511,12.17624534,243.02,242.92,12.17624534]
[1737636155523,12.17624534,243.02,242.93,4.1164]
[1737636155909,12.17624534,243.02,242.9,12.17624534]
[1737636155910,12.17624534,243.0,242.9,12.17624534]
[1737636156219,12.17624534,242.96,242.86,16.29374534]
[1737636156531,4.1149,243.02,242.86,4.1175]
[1737636156532,12.17624534,242.94,242.86,4.1175]
[1737636158105,12.17624534,243.03,242.92,12.17624534]
[1737636158306,12.17624534,243.05,242.95,12.17624534]
[1737636158933,12.17624534,243.03,242.93,12.17624534]
[1737636159744,12.17624534,243.05,242.96,4.1159]
[1737636160730,0.063,243.06,242.97,12.17624534]
[1737636160909,0.063,243.06,242.99,12.17624534]
[1737636161107,12.17624534,243.05,242.97,1.5665]
[1737636161433,0.063,243.06,242.95,18.53254534]
[1737636161434,12.17624534,243.03,242.95,18.53254534]
[1737636161602,12.17624534,243.03,242.95,12.17624534]
[1737636162431,12.17624534,243.03,242.95,16.29224534]
[1737636163332,12.17624534,243.01,242.9,12.17624534]
[1737636163630,4.1148,243.02,242.86,1.5152]
[1737636163631,12.17624534,242.99,242.88,12.17624534]
[1737636164517,12.17624534,242.97,242.88,12.17624534]
[1737636165530,4.1159,242.96,242.88,12.17624534]
[1737636167036,12.17624534,242.97,242.88,16.29344534]
[1737636167538,12.17624534,242.99,242.88,16.29344534]
[1737636167741,12.17624534,243.04,242.94,12.17624534]
[1737636169107,16.29084534,243.04,242.95,4.116]
[1737636170043,16.29084534,243.04,242.94,12.17624534]
[1737636170212,12.17624534,243.02,242.92,12.17624534]
[1737636170924,12.17624534,243.0,242.9,12.17624534]
[1737636171434,12.17624534,242.98,242.88,12.17624534]
[1737636172633,4.1157,242.97,242.88,16.29344534]
[1737636173438,4.1157,242.97,242.88,12.17624534]
[1737636174636,4.1157,242.97,242.87,0.03]
[1737636174948,4.1157,242.97,242.89,12.17624534]
[1737636175731,4.1157,242.97,242.87,12.20624534]
[1737636175922,12.17624534,242.96,242.87,12.20624534]
[1737636176342,12.17624534,242.96,242.87,0.03]
[1737636176722,4.116,242.95,242.87,0.03]
[1737636176924,4.116,242.95,242.87,12.20624534]
[1737636177125,12.17624534,242.96,242.87,12.20624534]
[1737636177543,4.1159,242.97,242.87,12.20624534]
[1737636177945,4.1789,242.97,242.87,12.20624534]
[1737636178127,4.1789,242.97,242.88,4.1172]
[1737636178329,0.063,242.97,242.88,4.1172]
[1737636178643,0.063,242.97,242.89,12.17624534]
[1737636180162,0.063,242.97,242.89,16.29314534]
[1737636180648,0.063,242.97,242.91,12.17624534]
[1737636180851,0.063,242.97,242.93,12.17624534]
[1737636181851,0.063,242.97,242.94,4.1162]
[1737636182551,4.1787,242.97,242.89,12.17624534]
[1737636183867,4.1787,242.97,242.89,16.29314534]
[1737636184749,0.063,242.97,242.91,12.17624534]
[1737636185967,0.063,242.97,242.91,16.29294534]
[1737636186358,0.063,242.97,242.93,12.17624534]
[1737636187958,1.6391,242.95,242.87,12.20624534]
[1737636188135,1.6391,242.95,242.87,0.03]
[1737636189638,4.1162,242.94,242.87,0.03]
[1737636190041,1.6391,242.95,242.87,12.20624534]
[1737636190251,4.1788,242.97,242.87,12.20624534]
[1737636190433,0.063,242.97,242.89,12.17624534]
[1737636190633,0.063,242.97,242.91,12.17624534]
[1737636193959,0.063,242.97,242.93,12.17624534]
[1737636194153,0.063,242.97,242.95,12.17624534]
[1737636195165,0.063,242.97,242.95,16.29214534]